Cogmind - Beta 16 @@@ ROGUE MODE // 2026.01.23 @ 23:15:48 Player: Lazz Result: Destroyed by FL-W1C(R) with Subdweller Machine Gun Performance ------------- Evolutions (0) 0 Regions Visited (2) 400 Robots Destroyed (12) 60 Value Destroyed (269) 269 Prototype IDs (0) 0 Alien Tech Used (0) 0 Bonus (0) 0 TOTAL SCORE: 729 Bonus ------- None Cogmind --------- Core Integrity 0/250 Matter 121/300 Energy 250/250 System Corruption 0% Temperature Cool (0) Movement Rolling (395) Ox21 Location -10/Subcaves Parts ------- > --- POWER (1) -------- Ion Engine > --- PROPULSION (2) --- Wheel > --- UTILITY (2) ------ Humpback > --- WEAPON (2) ------- Subdweller Machine Gun Subdweller Shrapnel Launcher > --- INVENTORY (35) --- Subdweller Power Source Subdweller Monowheel Subdweller Monowheel Medium Matter Pod (100) Makeshift Kinetic Plating Small Laser Subdweller Laser Battle Cannon Flamer Scrap Shield Fragment (47) Scrap Shield Fragment (47) SUBCON Basin (Full) Peak State ------------ > --- POWER ------------ Ion Engine > --- PROPULSION ------- Wheel Wheel > --- UTILITY ---------- Humpback > --- WEAPON ----------- Subdweller Machine Gun Subdweller Shrapnel Launcher > --- INVENTORY -------- Subdweller Monowheel Subdweller Monowheel Medium Matter Pod Makeshift Kinetic Plating Small Laser Subdweller Laser Battle Cannon Flamer Scrap Shield Fragment Scrap Shield Fragment SUBCON Basin [Rating: 29] Favorites ----------- Power Ion Engine Engine Ion Engine Propulsion Wheel Wheel Wheel Utility Humpback Storage Humpback Weapon Small Laser Energy Gun Small Laser Ballistic Gun Subdweller Machine Gun Ballistic Cannon Battle Cannon Launcher Subdweller Shrapnel Launcher Build | -11 -10 -10 ------- Run | Yrd Mat Sub Slots Evolved . | . . . Power . | . . . Propulsion . | . . . Utility . | . . . Weapon . | . . . Parts Attached 14 | 6 . 8 Power 1 | 1 . . Engine 1 | 1 . . Core . | . . . Reactor . | . . . Propulsion 5 | 2 . 3 Treads . | . . . Leg . | . . . Wheel 5 | 2 . 3 Hover . | . . . Flight . | . . . Utility 2 | 1 . 1 Device . | . . . Storage 2 | 1 . 1 Processor . | . . . Hackware . | . . . Protection . | . . . Artifact . | . . . Weapon 6 | 2 . 4 Energy Gun 3 | 2 . 1 Energy Cannon . | . . . Ballistic Gun 1 | . . 1 Ballistic Cannon 1 | . . 1 Launcher 1 | . . 1 Special Weapon . | . . . Impact Weapon . | . . . Slashing Weapon . | . . . Piercing Weapon . | . . . Special Melee Weapon . | . . . Unidentified Prototypes . | . . . Parts Lost 6 | . . 6 Power . | . . . Propulsion 4 | . . 4 Utility . | . . . Weapon 2 | . . 2 Highest Loss Streak 3 | . . 3 To Critical Strikes . | . . . Average Backups 6 | 2 5 6 Power . | . . . Propulsion 2 | 1 3 2 Utility 1 | . 1 1 Weapon 2 | . 1 2 Tool/Special . | . . . Unused Backups 8 | 1 . 7 Power 1 | . . 1 Propulsion 3 | 1 . 2 Utility 2 | . . 2 Weapon 2 | . . 2 Tool/Special . | . . . Average Slot Usage (%) 84 | . 85 84 Engine 14 | . 14 14 Wheel 27 | . 28 27 Storage 14 | . 14 14 Energy Gun 18 | . 28 17 Ballistic Gun 4 | . . 4 Ballistic Cannon 1 | . . 2 Launcher 3 | . . 3 Peak Build Rating 29 | 6 6 29 Average Rating 17 | 5 6 20 On Entrance 4 | . 6 6 Avg Prop Armor Cover (%) . | . . . Naked Turns . | . . . Heaviest Build 217 | 13 13 217 Greatest Support 26 | 26 26 26 Greatest Overweight (x) 13 | . . 13 Average Overweight (x) 6 | . . 7 Largest Inventory Capacity 35 | 8 8 35 Average Capacity 28 | 7 8 32 Most Carried 26 | 6 5 26 Average Carried 15 | 2 5 18 Final Capacity 35 | 8 8 35 Final Carried 26 | 5 5 26 Class Distribution -------------------- 75% | Hauler-Mutant 24% | Mutant Dominant Class ---------------- Mutant | -10/Materials Hauler-Mutant | -10/Subcaves Resources | -11 -10 -10 ----------- Run | Yrd Mat Sub Matter Collected 464 | 346 . 118 Remotely . | . . . Salvage Created 400 | 185 . 215 Parts 18 | 7 . 11 Haulers Intercepted . | . . . Recyclers Shooed . | . . . Parts Field Recycled . | . . . Retrieved Matter . | . . . Parts Self-Destructed 5 | . . 5 Prevented . | . . . Parts Restored . | . . . Kills | -11 -10 -10 ------- Run | Yrd Mat Sub Combat Hostiles Destroyed 6 | . . 6 Guns 2 | . . 2 Cannons 1 | . . 1 AOE 3 | . . 3 Classes Destroyed 5 | 3 . 2 Worker 2 | 2 . . Tunneler 3 | 3 . . Recycler 1 | 1 . . Artisan 1 | . . 1 Subdweller 6 | . . 6 Best Kill Streak 4 | 4 . 1 Combat Bots Only 1 | . . 1 Max Kills in Single Turn 2 | 1 . 2 Gunslinging . | . . . Exploded 1 | . . 1 Melee . | . . . Uniques/NPCs Destroyed . | . . . Combat | -11 -10 -10 -------- Run | Yrd Mat Sub Hostile Shots Fired 54 | . . 54 Missed 17 | . . 17 Hits 37 | . . 37 Projectile 37 | . . 37 AOE 1 | . . 1 Damage Taken 984 | 30 . 954 Core 260 | 30 . 230 Absorbed by Shields . | . . . Core Remaining (%) 88 | 88 . . Volleys Fired 42 | 16 . 26 Largest 2 | 2 . 2 Hottest 80 | 80 . 80 Shots Fired 83 | 32 . 51 Gun 70 | 32 . 38 Cannon 3 | . . 3 Launcher 10 | . . 10 Special . | . . . Kinetic 24 | . . 24 Thermal 40 | 16 . 24 Explosive . | . . . Electromagnetic 19 | 16 . 3 Robot Hit Streak 30 | 6 . 30 Robot Miss Streak 2 | 2 . 2 Penetration Max . | . . . Secondary Targets . | . . . Shots Hit Robots 56 | 21 . 35 Core Hits 23 | 6 . 17 Critical Kills . | . . . Critical Parts Destroyed . | . . . Critical Strikes . | . . . Melee Attacks . | . . . Impact . | . . . Slashing . | . . . Piercing . | . . . Sneak Attacks . | . . . Combat Hostiles . | . . . Follow-up Attacks . | . . . Damage Inflicted 1303 | 350 . 953 Guns 600 | 238 . 362 Cannons 43 | . . 43 Explosions 660 | 112 . 548 Melee . | . . . Ramming . | . . . Kinetic 567 | . . 567 Thermal 533 | 179 . 354 Explosive . | . . . Electromagnetic 203 | 171 . 32 Impact . | . . . Slashing . | . . . Piercing . | . . . Highest Corruption . | . . . Average Corruption . | . . . Corruption Purged . | . . . Corruption Blocked . | . . . Overload Shots . | . . . Overflow Damage 32 | 23 . 9 Projectiles . | . . . Explosions 32 | 23 . 9 Melee . | . . . Knockbacks 1 | . . 1 Impact . | . . . Kinetic 1 | . . 1 Secondary . | . . . Self-Inflicted Damage 162 | 31 . 131 Shots 6 | 1 . 5 Rammed . | . . . Targets Rammed . | . . . Kicked . | . . . Crushed . | . . . Highest Temperature 146 | 146 . 4 Average Temperature 62 | 63 . 4 Received Heat Transfer 201 | . . 201 Siege Activations . | . . . Martial Activations . | . . . Shielding Activations . | . . . Robots Disrupted . | . . . Combat Hostiles . | . . . Robots Corrupted . | . . . Combat Hostiles . | . . . Parts Fried 2 | 2 . . Impact Corruptions . | . . . Robots Melted . | . . . Combat Hostiles . | . . . Parts Melted 1 | . . 1 Heat Transferred 900 | 250 . 650 Parts Sabotaged . | . . . Parts Stolen . | . . . Parts Stripped . | . . . Power Chain Reactions 4 | 3 . 1 Alert | -11 -10 -10 ------- Run | Yrd Mat Sub Maximum Alert Level . | . . . Low Security (%) 100 | 100 100 . Level 1 . | . . . Level 2 . | . . . Level 3 . | . . . Level 4 . | . . . Level 5 . | . . . High Security . | . . . Max Security . | . . . Peak Influence 10 | 10 . . Initial . | . . . Average 1 | 2 . . Influence Increases 30 | 30 . . Destroy 0b10 Robot/NC 30 | 30 . . Influence Decreases 30 | 30 . . Time Decay 30 | 30 . . Squads Dispatched . | . . . Investigation . | . . . Extermination . | . . . Reinforcement . | . . . Assault . | . . . Garrison . | . . . Intercept . | . . . Searches Triggered . | . . . Construction Impeded . | . . . Haulers Reinforced . | . . . Active Scanning Responses . | . . . Cargo Convoy Interrupts . | . . . Stealth | -11 -10 -10 --------- Run | Yrd Mat Sub Distress Signals . | . . . Communications Jammed . | . . . Distress Signals . | . . . Times Spotted 11 | . . 11 Peak Tracking Total 4 | . . 4 Tactical Retreats . | . . . Traps | -11 -10 -10 ------- Run | Yrd Mat Sub Traps Triggered . | . . . Indirectly . | . . . Trap Hack Attempts . | . . . Triggered . | . . . Disarmed . | . . . Reprogrammed . | . . . Reused . | . . . Traps Extracted . | . . . Installed . | . . . Triggered . | . . . Machines | -11 -10 -10 ---------- Run | Yrd Mat Sub Machines Disabled . | . . . Max in Single Turn . | . . . Machines Repaired . | . . . Machines Dismantled . | . . . Machines Sabotaged . | . . . Overloaded Fab Kills . | . . . Hacking | -11 -10 -10 --------- Run | Yrd Mat Sub Machines Accessed 2 | . . 2 Terminals . | . . . Fabricators . | . . . Repair Stations . | . . . Recycling Units . | . . . Scanalyzers . | . . . Garrison Access . | . . . Total Hacks 3 | . . 3 Successful 3 | . . 3 Failed . | . . . Catastrophic . | . . . Database Lockouts . | . . . Manual . | . . . Terminals . | . . . Fabricators . | . . . Repair Stations . | . . . Recycling Units . | . . . Scanalyzers . | . . . Garrison Access . | . . . Terminal Hacks 3 | . . 3 Record 1 | . . 1 Open Door 1 | . . 1 Release Object 1 | . . 1 Fabricator Hacks . | . . . Repair Station Hacks . | . . . Recycling Unit Hacks . | . . . Scanalyzer . | . . . Garrison Access Hacks . | . . . Unauthorized Hacks . | . . . Terminals . | . . . Fabricators . | . . . Repair Stations . | . . . Recycling Units . | . . . Scanalyzers . | . . . Garrison Access . | . . . Data Cores Recovered . | . . . Used . | . . . Hacking Detections . | . . . Full Trace Events . | . . . Feedback Events . | . . . Feedback Blocked . | . . . Robot Schematics Acquired . | . . . Robots Built . | . . . Authchips . | . . . Time . | . . . Total Robot Build Rating . | . . . Part Schematics Acquired . | . . . Parts Built . | . . . Authchips . | . . . Time . | . . . Total Part Build Rating . | . . . Part Studies Acquired . | . . . Parts Repaired . | . . . Time . | . . . Parts Recycled . | . . . Recycled Matter . | . . . Retrieved Matter . | . . . Retrieved Components . | . . . Parts Scanalyzed . | . . . Part Schematics Acquired . | . . . Parts Damaged . | . . . Bothacking | -11 -10 -10 ------------ Run | Yrd Mat Sub Used RIF Installer . | . . . Robots Hacked . | . . . Non-combat . | . . . Combat . | . . . Robot Hacks Applied . | . . . Relay Couplers Released . | . . . Fabnet Peak Effective % . | . . . Robots Rewired . | . . . Allies Hacked . | . . . Hacks Repelled . | . . . Allies | -11 -10 -10 -------- Run | Yrd Mat Sub Total Allies . | . . . Largest Group . | . . . Highest-Rated Group . | . . . Highest-Rated Ally . | . . . Total Orders . | . . . Ally Attacks . | . . . Total Damage . | . . . Kills . | . . . Allies Corrupted . | . . . Allies Melted . | . . . Intel | -11 -10 -10 ------- Run | Yrd Mat Sub Active Infowar (turns) . | . . . Robot Analysis Total . | . . . Derelict Logs Recovered 1 | . . 1 Drone Launches . | . . . Drone Recoveries . | . . . Exploration | -11 -10 -10 ------------- Run | Yrd Mat Sub Turns Passed 1491 | 148 127 1216 Spaces Moved 630 | 93 13 524 Core 2 | 2 . . Treads . | . . . Legs . | . . . Wheels 628 | 91 13 524 Hover . | . . . Flight . | . . . Fastest Speed 50 | 50 90 90 Average Speed 179 | 89 90 197 Slowest Speed 295 | 100 90 295 Overloaded Moves . | . . . Propulsion Burnouts . | . . . Robots Hopped . | . . . Potential Cave-ins . | . . . Cave-ins Triggered . | . . . Exploration Rate (%) 15 | 4 4 37 Regions Visited 2 Branch Regions 1 Pre-discovered Areas 1 | . . 1 Known Exits Taken . | . . . Unknown Exits Taken 2 | 1 1 . Scrap Searched . | . . . Spaces Dug . | . . . Terrain Destroyed 145 | 6 . 139 Melee . | . . . Projectile 1 | . . 1 AOE 144 | 6 . 138 Terrain Rammed . | . . . Walls Destroyed . | . . . Machines Disabled . | . . . Actions | -11 -10 -10 --------- Run | Yrd Mat Sub Total 903 | 123 128 652 Wait 199 | 2 116 81 Move 628 | 92 12 524 Hop . | . . . Pick Up 18 | 6 . 12 Fast Attach 7 | 6 . 1 Attach 5 | . . 5 Detach . | . . . Swap 2 | . . 2 Drop 2 | 1 . 1 Fire 42 | 16 . 26 Melee . | . . . Ram . | . . . Kick . | . . . Crush . | . . . Escape Stasis . | . . . Rewire . | . . . Trap . | . . . Miscellaneous . | . . . Route ------- -11/Scrapyard -10/Materials -10/Subcaves History --------- Turn | Location | Event 2 | -11/Scrapyard | Met Revision 17 17 | -11/Scrapyard | Discovered new exit (range 15) 149 | -11/Scrapyard | Entered Materials 264 | -10/Materials | Discovered new exit (range 8) 276 | -10/Materials | Entered Subcaves 277 | -10/Subcaves | Approached by a straggling Scientist 317 | -10/Subcaves | Build established: Mutant 344 | -10/Subcaves | Shifting Twisted Machinery released Flamer 664 | -10/Subcaves | Build established: Hauler-Mutant 701 | -10/Subcaves | Found SUBCON Basin 917 | -10/Subcaves | Learned location of Zion (-6) 1040 | -10/Subcaves | Shifting Twisted Machinery released Mak. Kinetic Plating 1086 | -10/Subcaves | Core integrity fell below 50% 1126 | -10/Subcaves | Lost 3 parts (2n1w) 1153 | -10/Subcaves | Core integrity fell below 20% 1258 | -10/Subcaves | Shifting Twisted Machinery released Sub. Power Source 1483 | -10/Subcaves | Ambushed by Subdweller buried in earth 1486 | -10/Subcaves | Ambushed by Subdweller buried in earth 1486 | -10/Subcaves | Ambushed by Subdweller buried in earth 1489 | -10/Subcaves | Ambushed by Subdweller buried in earth 1489 | -10/Subcaves | Ambushed by Subdweller buried in earth 1492 | -10/Subcaves | Destroyed by FL-W1C(R) with Subdweller Machine Gun Last Messages --------------- 01160_ Subatomizers dissect the Sub. Monowheel. 01170_ Acquired 44 matter. 01174_ Acquired Sub. Monowheel. 01243_ Subatomizers dissect the Disposable Heat Sink. Sub. Power Source falls loose from the Twisted Machinery. 01280_ Subatomizers dissect the Disposable Heat Sink. 01297_ Acquired Sub. Power Source. 01484_ 2O-9F0(R): "ARGHSUB!" 01486_ 2O-9F0(R) destroyed. 01487_ FL-W1C(R): "HIDIE!" 01487_ 0D-XRX(R): "GOODGOOD!" 01490_ OK-38A(R): "SLEEPOVER!" 01490_ HS-1U2(R): "ARGHSUB!" 01492_ Sub. Machine Gun shoots sparks and powers down. 01492_ Wheel destroyed. 01492_ Destroyed Wheel. Map ----- +----------------------------------------------------+ | ???????????????????# ### ##???????????? | | ???????????????????# ## #????????????? | | ????????????????#### #????????????? | | ???????????????## #????????????? | | ???????????????# ## #????????????? | | ??????????????## #?# ##????????????? | | ??????????????# #?# ##?????????????? | | ??????????????# ### #####??????????????? | | ??????????????# ## ##?????????????????? | | ??????????????## ##????????????????? | | ??????????????## #????????????????? | | ??????????????# ##???????????????? | | ??????????????# ##???#??????????? | | ?????????????## ## ## ?????????? | | ?????????????# ### ????????? | | ?????????#####" ### ????????? | | ?????????# #< ## ??????????? | | ?????????# ## #????????????? | | ?????????# ## ### #?##????????????? | | ?????????# #< ## ##??##???????????????? | | ???????#### ## ## ##???????????????????? | | ???????# # # #???????????????????? | | ???????< ; ;#######???????????????? | | ??????<< ;## ##??????????????? | | ??????< ;# #??????????????? | | ????? [ @;# #??????????????? | | ??????#?## ]%RR #??????????????? | | ?????????# R ; ## #??????????????? | | ?????????# ; ##????#??????????????? | | ?????????## R ; ##????????????????????? | | ??????????### ###?????????????????????? | | ????????????## #????????????????????????? | | ?????????????######?????????????????????????? | | ????????????????????????????????????????????? | | ????????????????????????????????????????????? | | ????????????????????????????????????????????? | | ????????????????????????????????????????????? | | ????????????????????????????????????????????? | | ????????????????????????????????????????????? | | ????????????????????????????????????????????? | | ????????????????????????????????????????????? | | ????????????????????????????????????????????? | | ????????????????????????????????????????????? | | ????????????????????????????????????????????? | | ????????????????????????????????????????????? | | ????????????????????????????????????????????? | | ????????????????????????????????????????????? | | ????????????????????????????????????????????? | | ????????????????????????????????????????????? | | ????????????????????????????????????????????? | +----------------------------------------------------+ Best States ------------- Heat Dissipation 25 Energy Generation 10 Energy Capacity 250 Matter Stores 300 Matter Capacity 300 Sight Range 16 Terrain Scan Density 10 Evasion (%) 42 Item Schematics ----------------- None Robot Schematics ------------------ None Fabricated ------------ Nothing Repaired ---------- Nothing Studied --------- None Alien Tech Used ----------------- None Achievements -------------- None Challenges ------------ None Game ------ Seed ReactionDeuteriumFilter Manual? 0 Play Time 00:11:21 Cumulative 134.5 hours Start 2026.01.23 @ 23:06:51 End 2026.01.23 @ 23:15:48 Sessions 1 Manual Loads 0 Difficulty Rogue Special Mode None Game No. 194 Rogue 194 Adventurer 0 Explorer 0 Win Type - Total 1 Types 1/0/0/0/0/0/0/0/0/0 Lore% 64 Gallery% 58 Achievement% 42 Wizard Run 0 Options --------- Layout 2 ASCII 0 Keyboard 0 Movement Mouse Keybinds 0 Fullscreen 1 Font 16/SmallcapsGlow Map View 25x24 Zoom Use 86% Tactical HUD 1 Map Filters NONE Filters NONE Steam SD RUN: 671329ea-0a07-4e77-955d-f03c65bc10dc